lending/lending_fUSD_20240112
["ID","MTS","AMOUNT","RATE_DAILY","PERIOD"]
[311372588,1705069878187,-526.9,0.00023678,2]
[311372589,1705069878197,-500.0,0.00023678,2]
[311372590,1705069878208,-514.25,0.00023678,2]
[311372591,1705069878218,-828.68,0.00023678,2]
[311372592,1705069878228,-500.0,0.00023678,2]
[311372593,1705069878238,-500.0,0.00023678,2]
[311372594,1705069878250,-500.0,0.00023678,2]
[311372595,1705069878259,-527.53,0.00023678,2]
[311372596,1705069878269,-1088.6,0.00023678,2]
[311372597,1705069878279,-500.0,0.00023678,2]
[311372598,1705069878289,-500.0,0.00023678,2]
[311372599,1705069878300,-500.0,0.00023678,2]
[311372600,1705069878310,-1291.94,0.00023678,2]
[311372601,1705069878321,-500.0,0.00023678,2]
[311372602,1705069878332,-810.7,0.00023678,2]
[311372603,1705069878342,-4607.32,0.00023678,2]
[311372604,1705069878353,-504.06,0.00023678,2]
[311372605,1705069878363,-500.0,0.00023678,2]
[311372606,1705069878374,-500.0,0.00023678,2]
[311372607,1705069878384,-512.6,0.00023678,2]
[311372608,1705069878394,-500.0,0.00023678,2]
[311372609,1705069878405,-500.0,0.00023678,2]
[311372610,1705069878415,-2315.41,0.00023678,2]
[311372611,1705069878426,-500.0,0.00023678,2]
[311372612,1705069878437,-500.0,0.00023678,2]
[311372613,1705069878447,-500.0,0.00023678,2]
[311372614,1705069878457,-500.0,0.00023678,2]
[311372615,1705069878468,-1074.73,0.00023678,2]
[311372616,1705069878477,-1389.91,0.00023678,2]
[311372617,1705069878487,-500.0,0.00023678,2]
[311372618,1705069878499,-845.05,0.00023678,2]
[311372619,1705069878510,-500.0,0.00023678,2]
[311372620,1705069878520,-888.54,0.00023678,2]
[311372621,1705069878530,-500.0,0.00023678,2]
[311372622,1705069878540,-500.0,0.00023678,2]
[311372623,1705069878552,-1741.88,0.00023678,2]
[311372624,1705069878562,-1065.09,0.00023678,2]
[311372625,1705069878573,-500.0,0.00023678,2]
[311372626,1705069878584,-500.0,0.00023678,2]
[311372627,1705069878595,-500.0,0.00023678,2]
[311372628,1705069878605,-547.61,0.00023678,2]
[311372629,1705069878615,-866.87,0.00023678,2]
[311372630,1705069878625,-500.0,0.00023678,2]
[311372631,1705069878635,-500.0,0.00023678,2]
[311372632,1705069878646,-500.0,0.00023678,2]
[311372633,1705069878657,-500.0,0.00023678,2]
[311372634,1705069878667,-500.0,0.00023678,2]
[311372635,1705069878677,-1887.65,0.00023678,2]
[311372636,1705069878686,-500.0,0.00023678,2]
[311372637,1705069878696,-500.0,0.00023678,2]
[311372638,1705069878707,-1592.71,0.00023678,2]
[311372639,1705069878718,-500.0,0.00023678,2]
[311372640,1705069878728,-679.52,0.00023678,2]
[311372641,1705069878738,-978.52,0.00023678,2]
[311372642,1705069878750,-538.5,0.00023678,2]
[311372643,1705069878759,-523.52,0.00023678,2]
[311372644,1705069878769,-552.31,0.00023678,2]
[311372645,1705069878779,-1607.05,0.00023678,2]
[311372646,1705069878790,-625.78,0.00023678,2]
[311372647,1705069878800,-500.0,0.00023678,2]
[311372648,1705069878810,-1162.04,0.00023678,2]
[311372649,1705069878820,-500.0,0.00023678,2]
[311372650,1705069878830,-500.0,0.00023678,2]
[311372651,1705069878840,-3925.57,0.00023678,2]
[311372652,1705069878850,-6529.19,0.00023678,2]
[311372653,1705069878860,-500.0,0.00023678,2]
[311372654,1705069878870,-500.0,0.00023678,2]
[311372655,1705069878880,-1245.87,0.00023678,2]
[311372656,1705069878889,-500.0,0.00023678,2]
[311372657,1705069878899,-500.0,0.00023679,2]
[311372658,1705069878908,-500.0,0.00023679,2]
[311372659,1705069878922,-500.0,0.00023679,2]
[311372660,1705069878932,-502.5,0.00023679,2]
[311372661,1705069878941,-500.0,0.00023679,2]
[311372662,1705069878952,-500.0,0.00023679,2]
[311372663,1705069878962,-500.0,0.00023679,2]
[311372664,1705069878972,-702.1,0.00023679,2]
[311372665,1705069878982,-500.0,0.00023679,2]
[311372666,1705069878991,-544.39,0.00023679,2]
[311372667,1705069879002,-672.68,0.00023679,2]
[311372668,1705069879011,-500.0,0.00023679,2]
[311372669,1705069879021,-500.0,0.00023679,2]
[311372670,1705069879030,-500.0,0.00023679,2]
[311372671,1705069879040,-729.54,0.00023679,2]
[311372672,1705069879050,-500.0,0.00023679,2]
[311372673,1705069879059,-500.0,0.00023679,2]
[311372674,1705069879070,-500.0,0.00023679,2]
[311372675,1705069879079,-566.81,0.00023679,2]
[311372676,1705069879089,-500.0,0.00023679,2]
[311372677,1705069879099,-668.25,0.00023679,2]
[311372678,1705069879109,-500.0,0.00023679,2]
[311372679,1705069879119,-500.0,0.00023679,2]
[311372680,1705069879129,-695.69,0.00023679,2]
[311372681,1705069879139,-500.0,0.00023679,2]
[311372682,1705069879148,-500.0,0.00023679,2]
[311372683,1705069879158,-500.0,0.00023679,2]
[311372684,1705069879167,-500.84,0.00023679,2]
[311372685,1705069879178,-693.65,0.00023679,2]
[311372686,1705069879188,-500.0,0.00023679,2]
[311372687,1705069879198,-738.92,0.00023679,2]
[311372688,1705069879208,-500.0,0.00023679,2]
[311372689,1705069879218,-818.71,0.00023679,2]
[311372690,1705069879228,-1260.63,0.00023679,2]
[311372691,1705069879238,-500.0,0.00023679,2]
[311372692,1705069879248,-997.12,0.00023679,2]
[311372693,1705069879258,-500.0,0.00023679,2]
[311372694,1705069879267,-791.08,0.00023679,2]
[311372695,1705069879277,-500.0,0.00023679,2]
[311372696,1705069879287,-500.0,0.00023679,2]
[311372697,1705069879297,-583.49,0.00023679,2]
[311372698,1705069879307,-764.86,0.00023679,2]
[311372699,1705069879316,-500.0,0.00023679,2]
[311372700,1705069879326,-500.0,0.00023679,2]
[311372701,1705069879335,-500.0,0.00023679,2]
[311372702,1705069879345,-500.0,0.00023679,2]
[311372703,1705069879355,-500.0,0.00023679,2]
[311372704,1705069879365,-500.0,0.00023679,2]
[311372705,1705069879374,-500.0,0.00023679,2]
[311372706,1705069879384,-666.51,0.00023679,2]
[311372707,1705069879394,-500.0,0.00023679,2]
[311372708,1705069879404,-778.72,0.00023679,2]
[311372709,1705069879413,-538.35,0.00023679,2]
[311372710,1705069879423,-500.0,0.00023679,2]
[311372711,1705069879433,-500.0,0.00023679,2]
[311372712,1705069879442,-500.0,0.00023679,2]
[311372713,1705069879452,-500.0,0.00023679,2]
[311372714,1705069879461,-500.0,0.00023679,2]
[311372715,1705069879471,-523.13,0.00023679,2]
[311372716,1705069879481,-500.0,0.00023679,2]
[311372717,1705069879491,-1386.41,0.00023679,2]
[311372718,1705069879501,-500.0,0.00023679,2]
[311372719,1705069879510,-427.87536416,0.00023679,2]
[311372720,1705069879520,-913.03,0.00023679,2]
[311372721,1705069879529,-194.94273983,0.00023679,2]
[311372722,1705069879539,-632.3,0.00023679,2]
[311372723,1705069879555,-500.0,0.00023679,2]
[311372724,1705069879565,-507.75,0.00023679,2]
[311372725,1705069879574,-713.86,0.00023679,2]
[311372726,1705069879584,-500.0,0.00023679,2]
[311372727,1705069879594,-565.93,0.00023679,2]
[311372728,1705069879607,-528.24,0.00023679,2]
[311372729,1705069879617,-1012.05,0.00023679,2]
[311372730,1705069879626,-2200.73,0.00023679,2]
[311372731,1705069879636,-500.0,0.00023679,2]
[311372732,1705069879646,-500.0,0.00023679,2]
[311372733,1705069879656,-500.0,0.00023679,2]
[311372734,1705069879666,-500.0,0.00023679,2]
[311372735,1705069879676,-500.0,0.00023679,2]
[311372736,1705069879686,-574.28,0.00023679,2]
[311372737,1705069879696,-500.0,0.00023679,2]
[311372738,1705069879706,-610.82,0.00023679,2]
[311372739,1705069879717,-679.81,0.00023679,5]
[311372740,1705069879727,-560.5,0.00023679,2]
[311372741,1705069879737,-1995.08,0.00023679,2]
[311372742,1705069879749,-500.0,0.00023679,2]
[311372743,1705069879759,-1910.97,0.00023679,2]
[311372744,1705069879769,-500.0,0.00023679,2]
[311372745,1705069879780,-500.0,0.00023679,2]
[311372746,1705069879790,-500.0,0.00023679,2]
[311372747,1705069879800,-500.0,0.00023679,2]
[311372748,1705069879811,-1099.3,0.00023679,2]
[311372749,1705069879821,-531.38,0.00023679,2]
[311372750,1705069879831,-500.0,0.00023679,2]
[311372751,1705069879841,-832.14,0.00023679,2]
[311372752,1705069879851,-871.05,0.00023679,2]
[311372753,1705069879861,-963.48,0.00023679,2]
[311372754,1705069879872,-500.0,0.00023679,2]
[311372755,1705069879883,-500.0,0.00023679,2]
[311372756,1705069879894,-674.09,0.00023679,2]
[311372757,1705069879904,-500.0,0.00023679,2]
[311372758,1705069879914,-500.0,0.00023679,2]
[311372759,1705069879924,-673.94,0.00023679,2]
[311372760,1705069879935,-1270.12,0.00023679,2]
[311372761,1705069879944,-536.49,0.00023679,2]
[311372762,1705069879954,-694.97,0.00023679,2]
[311372763,1705069879964,-511.44,0.00023679,2]
[311372764,1705069879975,-500.0,0.00023679,2]
[311372765,1705069879985,-500.0,0.00023679,2]
[311372766,1705069879999,-500.0,0.00023679,2]
[311372767,1705069880010,-521.98,0.00023679,2]
[311372768,1705069880020,-592.85,0.00023679,2]
[311372769,1705069880030,-500.0,0.00023679,2]
[311372770,1705069880041,-500.0,0.00023679,2]
[311372771,1705069880052,-511.22,0.00023679,2]
[311372772,1705069880063,-1245.3,0.00023679,2]
[311372773,1705069880073,-757.48,0.00023679,2]
[311372774,1705069880082,-715.96,0.00023679,2]
[311372775,1705069880093,-500.0,0.0002368,2]
[311372776,1705069880250,-500.0,0.0002368,2]
[311372777,1705069880260,-500.0,0.0002368,2]
[311372778,1705069880269,-627.55,0.0002368,2]
[311372779,1705069880279,-500.0,0.0002368,2]
[311372780,1705069880288,-500.0,0.0002368,2]
[311372781,1705069880298,-500.0,0.0002368,2]
[311372782,1705069880307,-500.0,0.0002368,2]
[311372783,1705069880317,-500.0,0.0002368,2]
[311372784,1705069880329,-500.0,0.0002368,2]
[311372785,1705069880338,-500.0,0.0002368,2]
[311372786,1705069880347,-455.2,0.0002368,2]
[311372787,1705069880357,-500.0,0.0002368,2]
[311372788,1705069880366,-500.0,0.0002368,2]
[311372789,1705069880375,-500.0,0.0002368,2]
[311372790,1705069880385,-500.0,0.0002368,2]
[311372791,1705069880394,-500.0,0.0002368,2]
[311372792,1705069880404,-500.0,0.0002368,2]
[311372793,1705069880414,-500.0,0.0002368,2]
[311372794,1705069880423,-500.0,0.0002368,2]
[311372795,1705069880433,-528.3,0.0002368,2]
[311372796,1705069880443,-500.0,0.0002368,2]
[311372797,1705069880452,-500.0,0.0002368,2]
[311372798,1705069880462,-613.56,0.0002368,2]
[311372799,1705069880472,-500.0,0.0002368,2]
[311372800,1705069880481,-431.24,0.0002368,2]
[311372801,1705069880492,-500.0,0.0002368,2]
[311372802,1705069880502,-500.0,0.0002368,2]
[311372803,1705069880512,-209.05,0.0002368,2]
[311372804,1705069880521,-500.0,0.0002368,2]
[311372805,1705069880531,-509.96,0.0002368,2]
[311372806,1705069880541,-500.0,0.0002368,2]
[311372807,1705069880553,-500.0,0.0002368,2]
[311372808,1705069880564,-500.0,0.0002368,2]
[311372809,1705069880573,-500.0,0.0002368,2]
[311372810,1705069880583,-442.48,0.0002368,2]
[311372811,1705069880594,-500.0,0.0002368,2]
[311372812,1705069880603,-500.0,0.0002368,2]
[311372813,1705069880612,-500.0,0.0002368,2]
[311372814,1705069880623,-500.0,0.0002368,2]
[311372815,1705069880633,-500.0,0.0002368,2]
[311372816,1705069880643,-500.0,0.0002368,2]
[311372817,1705069880652,-500.0,0.0002368,2]
[311372818,1705069880661,-500.0,0.0002368,2]
[311372819,1705069880670,-500.0,0.0002368,2]
[311372820,1705069880680,-500.0,0.0002368,2]
[311372821,1705069880690,-500.0,0.0002368,2]
[311372822,1705069880699,-500.0,0.0002368,2]
[311372823,1705069880708,-500.0,0.0002368,2]
[311372824,1705069880717,-500.0,0.0002368,2]
[311372825,1705069880727,-500.0,0.0002368,2]
[311372826,1705069880737,-500.0,0.0002368,2]
[311372827,1705069880749,-500.0,0.0002368,2]
[311372828,1705069880759,-500.0,0.0002368,2]
[311372829,1705069880768,-500.0,0.0002368,2]
[311372830,1705069880778,-500.0,0.0002368,2]
[311372831,1705069880787,-500.0,0.0002368,2]
[311372832,1705069880797,-500.0,0.0002368,2]
[311372833,1705069880807,-500.0,0.0002368,2]
[311372834,1705069880817,-500.0,0.0002368,2]
[311372835,1705069880826,-500.0,0.0002368,2]
[311372836,1705069880836,-500.0,0.0002368,2]
[311372837,1705069880845,-500.0,0.0002368,2]
[311372838,1705069880855,-500.0,0.0002368,2]
[311372839,1705069880865,-500.0,0.0002368,2]
[311372840,1705069880875,-500.0,0.0002368,2]
[311372841,1705069880884,-500.0,0.0002368,2]
[311372842,1705069880894,-500.0,0.0002368,2]
[311372843,1705069880904,-500.0,0.0002368,2]
[311372844,1705069880914,-500.0,0.0002368,2]
[311372845,1705069880924,-500.0,0.0002368,2]
[311372846,1705069880935,-500.0,0.0002368,2]
[311372847,1705069880945,-500.0,0.0002368,2]
[311372848,1705069880954,-500.0,0.0002368,2]
[311372849,1705069880963,-500.0,0.0002368,2]
[311372850,1705069880973,-500.0,0.0002368,2]
[311372851,1705069880982,-500.0,0.0002368,2]
[311372852,1705069880994,-500.0,0.0002368,2]
[311372853,1705069881004,-569.65,0.0002368,2]
[311372854,1705069881014,-425.88112884,0.0002368,2]
[311372855,1705069881024,-500.0,0.0002368,2]
[311372856,1705069881034,-500.0,0.0002368,2]
[311372857,1705069881044,-500.0,0.0002368,2]
[311372858,1705069881054,-500.0,0.0002368,2]
[311372859,1705069881065,-500.0,0.0002368,2]
[311372860,1705069881075,-500.0,0.0002368,2]
[311372861,1705069881085,-500.0,0.0002368,2]
[311372862,1705069881096,-500.0,0.0002368,2]
[311372863,1705069881105,-500.0,0.0002368,2]
[311372864,1705069881114,-500.0,0.0002368,2]
[311372865,1705069881124,-500.0,0.0002368,2]
[311372866,1705069881133,-500.0,0.0002368,2]
[311372867,1705069881143,-500.0,0.0002368,2]
[311372868,1705069881152,-375.11991175,0.0002368,2]
[311372869,1705069881161,-500.0,0.0002368,2]
[311372870,1705069881171,-500.0,0.0002368,2]
[311372871,1705069881180,-500.0,0.0002368,2]
[311372872,1705069881190,-500.0,0.0002368,2]
[311372873,1705069881200,-500.0,0.0002368,2]
[311372874,1705069881209,-500.0,0.0002368,2]
[311372875,1705069881218,-500.0,0.0002368,2]
[311372876,1705069881227,-500.0,0.0002368,2]
[311372877,1705069881237,-500.0,0.0002368,2]
[311372878,1705069881251,-500.0,0.0002368,2]
[311372879,1705069881261,-500.0,0.0002368,2]
[311372880,1705069881270,-500.0,0.0002368,2]
[311372881,1705069881279,-500.0,0.0002368,2]
[311372882,1705069881289,-250.0,0.0002368,2]
[311372883,1705069881299,-500.0,0.0002368,2]
[311372884,1705069881309,-556.84,0.0002368,2]
[311372885,1705069881319,-500.0,0.0002368,2]
[311372886,1705069881328,-500.0,0.0002368,2]
[311372887,1705069881338,-500.0,0.0002368,2]
[311372888,1705069881348,-500.0,0.0002368,2]
[311372889,1705069881357,-500.0,0.0002368,2]
[311372890,1705069881366,-500.0,0.0002368,2]
[311372891,1705069881375,-500.0,0.0002368,2]
[311372892,1705069881385,-500.0,0.0002368,2]
[311372893,1705069881394,-500.0,0.0002368,2]
[311372894,1705069881403,-500.0,0.0002368,2]
[311372895,1705069881413,-500.0,0.0002368,2]
[311372896,1705069881423,-500.0,0.0002368,2]
[311372897,1705069881432,-500.0,0.0002368,2]
[311372898,1705069881441,-500.0,0.0002368,2]
[311372899,1705069881451,-500.0,0.0002368,2]
[311372900,1705069881460,-500.0,0.0002368,2]
[311372901,1705069881470,-500.0,0.0002368,2]
[311372902,1705069881479,-500.0,0.0002368,2]
[311372903,1705069881488,-500.0,0.0002368,2]
[311372904,1705069881501,-500.0,0.0002368,2]
[311372905,1705069881511,-2064.59,0.0002368,2]
[311372906,1705069881521,-500.0,0.0002368,2]
[311372907,1705069881530,-500.0,0.0002368,2]
[311372908,1705069881540,-395.39116575,0.0002368,2]
[311372909,1705069881549,-554.14,0.0002368,2]
[311372910,1705069881559,-555.49,0.0002368,2]
[311372911,1705069881568,-500.0,0.0002368,2]
[311372912,1705069881577,-500.0,0.0002368,2]
[311372913,1705069881586,-500.0,0.0002368,2]
[311372914,1705069881595,-2984.21,0.0002368,2]
[311372915,1705069881605,-500.0,0.0002368,2]
[311372916,1705069881614,-500.0,0.0002368,2]
[311372917,1705069881624,-500.0,0.0002368,2]
[311372918,1705069881634,-500.0,0.0002368,2]
[311372919,1705069881644,-500.0,0.0002368,2]
[311372920,1705069881654,-500.0,0.0002368,2]
[311372921,1705069881664,-500.0,0.0002368,2]
[311372922,1705069881674,-500.0,0.0002368,2]
[311372923,1705069881684,-500.0,0.0002368,2]
[311372924,1705069881694,-500.0,0.0002368,2]
[311372925,1705069881703,-500.0,0.0002368,2]
[311372926,1705069881713,-476.8,0.0002368,2]
[311372927,1705069881723,-205.75980703,0.0002368,2]
[311372928,1705069881732,-306.24,0.0002368,2]
[311372929,1705069881744,-500.0,0.0002368,2]
[311372930,1705069881753,-500.0,0.0002368,2]
[311372931,1705069881763,-500.0,0.0002368,2]
[311372932,1705069881773,-500.0,0.0002368,2]
[311372933,1705069881783,-500.0,0.0002368,2]
[311372934,1705069881793,-500.0,0.0002368,2]
[311372935,1705069881802,-500.0,0.0002368,2]
[311372936,1705069881812,-500.0,0.0002368,2]
[311372937,1705069881821,-500.0,0.0002368,2]
[311372938,1705069881830,-500.0,0.00023681,2]
[311372939,1705069881840,-500.0,0.00023681,2]
[311372940,1705069881849,-500.0,0.00023681,2]
[311372941,1705069881859,-500.0,0.00023681,2]
[311372942,1705069881868,-500.0,0.00023681,2]
[311372943,1705069881878,-500.0,0.00023681,2]
[311372944,1705069881888,-500.0,0.00023681,2]
[311372945,1705069881897,-500.0,0.00023681,2]
[311372946,1705069881906,-500.0,0.00023681,2]
[311372947,1705069881916,-500.0,0.00023681,2]
[311372948,1705069881926,-500.0,0.00023681,2]
[311372949,1705069881935,-500.0,0.00023681,2]
[311372950,1705069881945,-521.52,0.00023681,2]
[311372951,1705069881955,-500.0,0.00023681,2]
[311372952,1705069881964,-500.0,0.00023681,2]
[311372953,1705069881973,-500.0,0.00023681,2]
[311372954,1705069881983,-500.0,0.00023681,2]
[311372955,1705069881993,-500.0,0.00023681,2]
[311372956,1705069882002,-500.0,0.00023681,2]
[311372957,1705069882011,-500.0,0.00023681,2]
[311372958,1705069882022,-500.0,0.00023681,2]
[311372959,1705069882031,-500.0,0.00023681,2]
[311372960,1705069882040,-500.0,0.00023681,2]
[311372961,1705069882049,-500.0,0.00023681,2]
[311372962,1705069882059,-500.0,0.00023681,2]
[311372963,1705069882068,-515.60805841,0.00023681,2]
[311372964,1705069882078,-500.0,0.00023681,2]
[311372965,1705069882087,-500.0,0.00023681,2]
[311372966,1705069882096,-500.0,0.00023681,2]
[311372967,1705069882106,-500.0,0.00023681,2]
[311372968,1705069882116,-500.0,0.00023681,2]
[311372969,1705069882126,-500.0,0.00023681,2]
[311372970,1705069882135,-500.0,0.00023681,2]
[311372971,1705069882145,-502.42,0.00023681,2]
[311372972,1705069882154,-500.0,0.00023681,2]
[311372973,1705069882163,-500.0,0.00023681,2]
[311372974,1705069882173,-405.41455721,0.00023681,2]
[311372975,1705069882182,-500.0,0.00023681,2]
[311372976,1705069882192,-500.0,0.00023681,2]
[311372977,1705069882201,-500.0,0.00023681,2]
[311372978,1705069882211,-500.0,0.00023681,2]
[311372979,1705069882221,-500.0,0.00023681,2]
[311372980,1705069882230,-881.21,0.00023681,2]
[311372981,1705069882241,-500.0,0.00023681,2]
[311372982,1705069882257,-500.0,0.00023681,2]
[311372983,1705069882267,-535.59,0.00023681,2]
[311372984,1705069882278,-500.0,0.00023681,2]
[311372985,1705069882287,-500.0,0.00023681,2]
[311372986,1705069882296,-514.86,0.00023681,2]
[311372987,1705069882305,-155.0,0.00023683,2]
[311372988,1705069882314,-454.45788398,0.00023683,2]
[311372989,1705069882323,-263.13667066,0.00023683,2]
[311372990,1705069882331,-39595.0,0.000237,2]
[311372991,1705069882341,-185.00626661,0.00023717,2]
[311372992,1705069882350,-173.14,0.00023759,2]
[311372993,1705069882360,-159.03,0.00023765,2]
[311372994,1705069882369,-1592.71,0.00023819,2]
[311372995,1705069882379,-629.62,0.0002382,2]
[311372996,1705069882388,-923.31,0.0002382,2]
[311372997,1705069882398,-537.36,0.0002382,2]
[311372998,1705069882407,-760.69,0.0002382,2]
[311372999,1705069882417,-500.0,0.0002382,2]
[311373000,1705069882426,-4615.76611416,0.00023878,2]
[311373001,1705069882437,-760.98,0.0002395,2]
[311373002,1705069882447,-1576.67,0.0002395,2]
[311373003,1705069882457,-1676.63,0.0002395,2]
[311373004,1705069882467,-1776.52,0.0002395,2]
[311373005,1705069882477,-1028.33,0.0002395,2]
[311373006,1705069882486,-903.76,0.0002395,2]
[311373007,1705069882499,-823.09,0.0002395,2]
[311373008,1705069882508,-500.0,0.0002395,2]
[311373009,1705069882520,-1992.9,0.0002395,2]
[311373010,1705069882530,-500.0,0.0002395,2]
[311373011,1705069882538,-500.0,0.0002395,2]
[311373012,1705069882548,-1088.57,0.0002395,2]
[311373013,1705069882558,-592.52,0.0002395,2]
[311373014,1705069882568,-1069.49,0.0002395,2]
[311373015,1705069882579,-11473.02,0.0002395,2]
[311373016,1705069882590,-1045.86,0.0002395,2]
[311373017,1705069882600,-500.0,0.0002395,2]
[311373018,1705069882610,-1530.26,0.0002395,2]
[311373019,1705069882619,-693.02,0.0002395,2]
[311373020,1705069882629,-500.0,0.0002395,2]
[311373021,1705069882639,-773.0,0.0002395,2]
[311373022,1705069882648,-1161.03,0.0002395,2]
[311373023,1705069882658,-500.0,0.0002395,2]
[311373024,1705069882667,-262.08139179,0.0002395,2]
[311373025,1705069882678,-500.0,0.0002395,2]
[311373026,1705069882687,-500.0,0.0002395,2]
[311373027,1705069882697,-500.0,0.0002395,2]
[311373028,1705069882713,-500.0,0.0002395,2]
[311373029,1705069882723,-648.77,0.0002395,2]
[311373030,1705069882732,-3055.75,0.0002395,2]
[311373031,1705069882743,-996.78,0.00023951,2]
[311373032,1705069882753,-939.36,0.00023951,2]
[311373033,1705069882763,-535.32,0.00023951,2]
[311373034,1705069882772,-1978.54,0.00023951,2]
[311373035,1705069882782,-570.64,0.00023951,2]
[311373036,1705069882791,-10562.85,0.00023951,2]
[311373037,1705069882801,-6373.11,0.00023951,2]
[311373038,1705069882810,-749.0,0.00023951,2]
[311373039,1705069882819,-928.84,0.00023951,2]
[311373040,1705069882830,-536.68,0.00023951,2]
[311373041,1705069882840,-2087.57,0.00023951,2]
[311373042,1705069882850,-904.81,0.00023951,2]
[311373043,1705069882859,-889.19,0.00023951,2]
[311373044,1705069882869,-978.77,0.00023951,2]
[311373045,1705069882878,-712.93,0.00023951,2]
[311373046,1705069882890,-553.32,0.00023951,2]
[311373047,1705069882899,-1083.57,0.00023951,2]
[311373048,1705069882908,-5000.64,0.00023951,2]
[311373049,1705069882918,-1837.15,0.00023951,2]
[311373050,1705069882928,-500.0,0.00023951,2]
[311373051,1705069882937,-1063.77,0.00023951,2]
[311373052,1705069882947,-500.0,0.00023951,2]
[311373053,1705069882957,-4397.81,0.00023951,2]
[311373054,1705069882967,-1384.9,0.00023951,2]
[311373055,1705069882977,-1749.07,0.00023951,2]
[311373056,1705069882987,-8501.24,0.00023951,2]
[311373057,1705069882999,-550.62,0.00023951,2]
[311373058,1705069883009,-500.0,0.00023951,2]
[311373059,1705069883019,-563.63,0.00023951,2]
[311373060,1705069883029,-2396.88,0.00023951,2]
[311373061,1705069883039,-947.32,0.00023951,2]
[311373062,1705069883049,-3427.97,0.00023951,2]
[311373063,1705069883058,-3063.47,0.00023951,2]
[311373064,1705069883068,-2388.38,0.00023951,2]
[311373065,1705069883077,-1809.41,0.00023951,2]
[311373066,1705069883086,-500.0,0.00023952,2]
[311373067,1705069883095,-500.0,0.00023952,2]
[311373068,1705069883105,-500.0,0.00023952,2]
[311373069,1705069883114,-502.36,0.00023952,2]
[311373070,1705069883123,-516.86,0.00023952,2]
[311373071,1705069883134,-612.81,0.00023952,2]
[311373072,1705069883143,-500.0,0.00023952,2]
[311373073,1705069883152,-513.4,0.00023952,2]
[311373074,1705069883161,-500.0,0.00023952,2]
[311373075,1705069883170,-500.0,0.00023952,2]
[311373076,1705069883180,-500.0,0.00023952,2]
[311373077,1705069883189,-500.0,0.00023952,2]
[311373078,1705069883198,-500.0,0.00023952,2]
[311373079,1705069883208,-500.0,0.00023952,2]
[311373080,1705069883218,-500.0,0.00023952,2]
[311373081,1705069883227,-504.92,0.00023952,2]
[311373082,1705069883236,-500.0,0.00023952,2]
[311373083,1705069883249,-500.0,0.00023952,2]
[311373084,1705069883258,-626.52,0.00023952,2]
[311373085,1705069883267,-500.0,0.00023952,2]
[311373086,1705069883277,-500.0,0.00023952,2]
[311373087,1705069883286,-489.72,0.00023952,2]